bitfinex/quotes_BTCUSD_20251110
["timestamp","ask_amount","ask_price","bid_price","bid_amount"]
[1762805335600,1e-08,106140.0,106130.0,1.43096555]
[1762805336520,1e-08,106140.0,106130.0,1.49828148]
[1762805336880,1e-08,106140.0,106130.0,1.35278148]
[1762805337086,1e-08,106140.0,106130.0,1.28546555]
[1762805337283,1e-08,106140.0,106130.0,0.72915845]
[1762805337511,1e-08,106140.0,106130.0,1.36969219]
[1762805338915,0.00876,106170.0,106160.0,0.18837894]
[1762805339116,0.00923825,106170.0,106160.0,0.18837894]
[1762805339424,0.0513635,106170.0,106160.0,0.18837894]
[1762805340454,0.0513635,106170.0,106160.0,0.50864581]
[1762805340656,0.0513635,106170.0,106160.0,0.18837894]
[1762805340888,0.0513635,106170.0,106160.0,0.20040894]
[1762805341710,0.0513635,106170.0,106160.0,0.52067581]
[1762805341912,0.0513635,106170.0,106160.0,0.20040894]
[1762805343389,0.04253175,106170.0,106160.0,0.20040894]
[1762805344207,0.06687175,106170.0,106160.0,0.20040894]
[1762805344410,0.02690175,106170.0,106160.0,0.21575894]
[1762805344612,0.25594956,106170.0,106150.0,0.23814637]
[1762805344800,0.02723,106160.0,106150.0,0.56114637]
[1762805344983,0.05157,106160.0,106150.0,0.88141324]
[1762805345393,0.02723,106160.0,106150.0,0.88141324]
[1762805346377,0.0116,106160.0,106150.0,0.92133324]
[1762805346581,0.03357825,106170.0,106160.0,0.18839487]
[1762805346735,0.06008404,106170.0,106160.0,0.18839487]
[1762805346935,0.03574404,106170.0,106160.0,0.21577487]
[1762805347177,0.04253878,106170.0,106160.0,0.20042487]
[1762805347300,0.25525591,106170.0,106160.0,0.18839487]
[1762805347517,0.26409175,106170.0,106160.0,0.18839487]
[1762805348577,0.07571462,106170.0,106160.0,0.18839487]
[1762805351497,0.06687878,106170.0,106160.0,0.18839487]
[1762805351898,0.06757946,106170.0,106160.0,0.18839487]
[1762805352378,0.07641623,106170.0,106160.0,0.18839487]
[1762805352832,0.00117893,106170.0,106160.0,0.88087861]
[1762805353241,0.00117893,106170.0,106160.0,0.90918804]
[1762805353448,0.00117893,106170.0,106160.0,1.23218804]
[1762805353857,0.00117893,106170.0,106160.0,1.2995088]
[1762805354072,0.00117893,106170.0,106160.0,1.33569108]
[1762805355342,0.00117893,106170.0,106160.0,1.33669108]
[1762805356067,0.00117893,106170.0,106160.0,1.33769108]
[1762805357600,0.00117893,106170.0,106160.0,1.65795795]
[1762805357953,0.00117893,106170.0,106160.0,1.67486383]
[1762805358531,0.00117893,106170.0,106160.0,1.67386383]
[1762805359011,0.00117893,106170.0,106160.0,1.67586383]
[1762805359216,0.00117893,106170.0,106160.0,1.67286383]
[1762805359419,0.00117893,106170.0,106160.0,1.59363719]
[1762805359630,0.00117893,106170.0,106160.0,1.27337032]
[1762805359915,0.00117893,106170.0,106160.0,1.66344102]
[1762805360128,0.00117893,106170.0,106160.0,1.66644102]
[1762805360556,1e-08,106170.0,106160.0,1.75066766]
[1762805363234,1e-08,106170.0,106160.0,1.66644102]
[1762805363854,1e-08,106170.0,106160.0,1.41328448]
[1762805364053,1e-08,106170.0,106160.0,1.3771022]
[1762805364276,1e-08,106170.0,106160.0,0.73656846]
[1762805364523,1e-08,106170.0,106160.0,1.3771022]
[1762805364726,1e-08,106170.0,106160.0,1.41328448]
[1762805365323,1e-08,106170.0,106160.0,1.40728448]
[1762805365523,1e-08,106170.0,106160.0,1.08628448]
[1762805365754,1e-08,106170.0,106160.0,0.66545813]
[1762805365875,0.02436001,106170.0,106160.0,0.2307343]
[1762805366072,0.23716714,106170.0,106160.0,0.2297343]
[1762805366278,0.04879001,106170.0,106160.0,0.5537343]
[1762805366525,0.23716714,106170.0,106160.0,0.5537343]
[1762805366909,0.02436001,106170.0,106160.0,0.2307343]
[1762805367175,0.02436001,106170.0,106160.0,0.55100117]
[1762805367347,0.02436001,106170.0,106160.0,0.55000117]
[1762805367549,0.02436001,106170.0,106160.0,0.55100117]
[1762805368663,0.00876001,106170.0,106160.0,0.2551843]
[1762805368878,0.00876001,106170.0,106160.0,0.57545117]
[1762805369965,0.00876001,106170.0,106160.0,0.55100117]
[1762805371035,0.19713714,106170.0,106160.0,0.55100117]
[1762805371251,0.23716714,106170.0,106160.0,0.03030943]
[1762805371691,0.63288938,106170.0,106160.0,0.002]
[1762805371899,2.25487022,106170.0,106160.0,0.002]
[1762805372116,2.65520868,106170.0,106160.0,0.001]
[1762805372320,2.65520868,106170.0,106130.0,0.5170198]
[1762805372534,0.51957042,106150.0,106140.0,0.02831926]
[1762805372766,0.01088,106150.0,106140.0,0.21674963]
[1762805372966,0.05091,106150.0,106140.0,0.21674963]
[1762805373191,0.02648,106150.0,106140.0,0.21674963]
[1762805373398,0.02648,106150.0,106140.0,0.5489965]
[1762805373522,0.01088,106150.0,106140.0,0.5654365]
[1762805373729,0.01088,106150.0,106140.0,0.24516963]
[1762805373927,0.03531,106160.0,106150.0,0.18841262]
[1762805374221,0.01088,106160.0,106150.0,0.18841262]
[1762805374730,0.01088,106160.0,106150.0,0.56154949]
[1762805375058,0.05091,106160.0,106150.0,0.20039262]
[1762805375263,0.05091,106160.0,106150.0,0.52065949]
[1762805375264,0.02648,106160.0,106150.0,0.52065949]
[1762805375882,0.02648,106160.0,106150.0,0.20039262]
[1762805376286,0.02648,106160.0,106150.0,0.21672851]
[1762805376484,0.23930487,106160.0,106150.0,0.21672851]
[1762805376685,0.02648,106160.0,106150.0,0.54897538]
[1762805376905,0.01088,106160.0,106150.0,0.26959851]
[1762805377282,0.01088,106160.0,106150.0,0.58989313]
[1762805377481,0.22156954,106170.0,106160.0,0.18839487]
[1762805377667,0.22156954,106170.0,106150.0,0.26959851]
[1762805377893,0.22156954,106170.0,106160.0,0.18839487]
[1762805378097,0.22156954,106170.0,106160.0,0.21670871]
[1762805378320,0.23716954,106170.0,106160.0,0.21670871]
[1762805380285,0.23716954,106170.0,106160.0,0.02831384]
[1762805380490,0.23716954,106170.0,106160.0,0.21670871]
[1762805381251,0.04879,106170.0,106160.0,0.21670871]
[1762805381883,0.23716713,106170.0,106160.0,0.21670871]
[1762805383259,0.04879,106170.0,106160.0,0.21670871]
[1762805385424,0.03554351,106180.0,106160.0,0.24512871]
[1762805385627,0.22404631,106180.0,106170.0,0.18837713]
[1762805386037,0.00876,106170.0,106160.0,0.18839487]
[1762805386269,0.04879,106170.0,106160.0,0.18839487]
[1762805386598,0.00876,106170.0,106160.0,0.58987055]
[1762805386822,0.01125693,106180.0,106170.0,0.18837713]
[1762805387006,0.01125693,106180.0,106170.0,0.20035713]
[1762805387306,0.01125693,106180.0,106170.0,0.56154175]
[1762805387482,0.01125693,106180.0,106170.0,0.58985115]
[1762805388091,0.01125693,106180.0,106170.0,0.26955653]
[1762805388295,0.02685693,106180.0,106170.0,0.22866653]
[1762805390470,0.05128693,106180.0,106170.0,0.22866653]
[1762805392185,0.23964631,106180.0,106170.0,0.21668653]
[1762805393809,0.18838679,106170.0,106150.0,0.18841021]
[1762805394009,0.00982,106160.0,106150.0,0.22230021]
[1762805394249,0.00982,106160.0,106150.0,0.54530021]
[1762805394450,0.05084,106160.0,106150.0,0.52229021]
[1762805394672,0.02648,106160.0,106150.0,0.55060407]
[1762805394831,0.00982,106160.0,106150.0,0.59005407]
[1762805395843,0.00982,106160.0,106150.0,0.56668407]
[1762805396819,0.23816487,106160.0,106150.0,0.53936407]
[1762805397576,0.04977,106160.0,106150.0,0.53936407]
[1762805399670,0.23816487,106160.0,106150.0,0.21636407]
[1762805399875,0.28180123,106160.0,106150.0,0.02831386]
[1762805400105,0.28180123,106160.0,106150.0,0.21672648]
[1762805400387,0.23816487,106160.0,106150.0,0.02831386]
[1762805400589,0.57610676,106160.0,106150.0,0.02831386]
[1762805400729,0.18841262,106150.0,106140.0,0.18842963]
[1762805402039,0.25688805,106150.0,106140.0,0.21674811]
[1762805402209,0.23924262,106150.0,106140.0,0.21674811]
[1762805402587,0.05083,106150.0,106140.0,0.21674811]
[1762805403191,0.03353,106160.0,106150.0,0.18841262]
[1762805403391,0.05117147,106160.0,106150.0,0.18841262]
[1762805403593,0.06741147,106160.0,106150.0,0.18841262]
[1762805404181,0.04977,106160.0,106150.0,0.21672817]
[1762805405851,0.00982,106160.0,106150.0,0.58880279]
[1762805406051,0.00982,106160.0,106150.0,0.24414817]
[1762805406281,0.02606,106160.0,106150.0,0.22823817]
[1762805406874,0.21445487,106160.0,106150.0,0.22823817]
[1762805407086,0.23816487,106160.0,106150.0,0.22823817]
[1762805407291,0.04977,106160.0,106150.0,0.22823817]
[1762805407424,0.00982,106160.0,106150.0,0.26850817]
[1762805408848,0.02459577,106170.0,106160.0,0.18839487]
[1762805409259,0.04977,106170.0,106160.0,0.18839487]
[1762805409664,0.23814713,106170.0,106160.0,0.02831267]
[1762805409846,0.1883979,106160.0,106140.0,0.20936188]
[1762805410046,0.01035,106150.0,106140.0,0.53236188]
[1762805410344,0.0503,106150.0,106140.0,0.53236188]
[1762805410559,0.02659,106150.0,106140.0,0.53236188]
[1762805410750,0.01035,106160.0,106150.0,0.18841262]
[1762805411184,0.02659,106160.0,106150.0,0.18841262]
[1762805411391,0.0503,106160.0,106150.0,0.18841262]
[1762805411566,0.0503,106160.0,106150.0,0.2167279]
[1762805411741,0.23869487,106160.0,106150.0,0.2167279]
[1762805411966,0.23869487,106160.0,106150.0,0.02831528]
[1762805413011,0.23869487,106160.0,106150.0,0.2167279]
[1762805413760,0.0503,106160.0,106150.0,0.2167279]
[1762805413969,0.23869487,106160.0,106150.0,0.2167279]
[1762805414218,0.0503,106160.0,106150.0,0.2167279]
[1762805414355,0.23869487,106160.0,106150.0,0.2167279]
[1762805415405,0.23869487,106160.0,106150.0,0.02831528]
[1762805415802,0.23869487,106160.0,106150.0,0.2167279]
[1762805416015,0.23869487,106160.0,106150.0,0.02831528]
[1762805416527,0.23869487,106160.0,106150.0,0.2167279]
[1762805416733,0.0503,106160.0,106150.0,0.2167279]
[1762805417920,0.23869487,106160.0,106150.0,0.2167279]
[1762805418367,0.0503,106160.0,106150.0,0.2167279]
[1762805419324,0.23869487,106160.0,106150.0,0.2167279]
[1762805420009,0.0503,106160.0,106150.0,0.2167279]
[1762805420288,0.0503,106160.0,106150.0,0.18841262]
[1762805420584,0.23869487,106160.0,106150.0,0.18841262]
[1762805420747,0.0503,106160.0,106150.0,0.18841262]
[1762805421572,0.01035,106160.0,106150.0,0.24019262]
[1762805421734,0.0503,106160.0,106150.0,0.19992262]
[1762805423003,0.02659,106160.0,106150.0,0.19992262]
[1762805423702,0.19819735,106170.0,106160.0,0.18839487]
[1762805423895,0.24966438,106170.0,106160.0,0.18839487]
[1762805424126,0.26515438,106170.0,106160.0,0.18839487]
[1762805427697,0.26515438,106170.0,106150.0,0.19992262]
[1762805427892,0.05081,106160.0,106150.0,0.19992262]
[1762805428088,0.06847469,106160.0,106150.0,0.19992262]
[1762805428514,0.25686956,106160.0,106150.0,0.19992262]
[1762805428719,0.25686956,106160.0,106140.0,0.90462178]
[1762805428936,0.05081,106150.0,106140.0,0.54916716]
[1762805429368,0.11285615,106160.0,106150.0,0.18841262]
[1762805429580,0.05299081,106160.0,106150.0,0.18841262]
[1762805429798,0.25687568,106160.0,106150.0,0.18841262]
[1762805429997,0.06848081,106160.0,106150.0,0.18841262]
[1762805430212,0.25687568,106160.0,106150.0,0.18841262]
[1762805430437,0.06848081,106160.0,106150.0,0.18841262]
[1762805431975,0.04351081,106160.0,106150.0,0.52057724]
[1762805432192,0.01767081,106160.0,106150.0,0.56008724]
[1762805432415,0.06848081,106160.0,106150.0,0.20028262]
[1762805433226,0.06848081,106160.0,106150.0,0.18841262]
[1762805434356,0.04351081,106160.0,106150.0,0.20028262]
[1762805434570,0.06848081,106160.0,106150.0,0.20028262]
[1762805436368,0.25687568,106160.0,106150.0,0.18841262]
[1762805436584,0.06848081,106160.0,106150.0,0.18841262]
[1762805437699,0.05081,106160.0,106150.0,0.18841262]
[1762805437923,0.256886,106160.0,106150.0,0.18841262]
[1762805439895,0.06849113,106160.0,106150.0,0.18841262]
[1762805440360,0.06849113,106160.0,106150.0,0.5087295]
[1762805441257,0.256886,106160.0,106150.0,0.5087295]
[1762805441470,0.256886,106160.0,106150.0,0.18841262]
[1762805441921,0.06849113,106160.0,106150.0,0.18841262]
[1762805442538,0.256886,106160.0,106150.0,0.18841262]
[1762805442753,0.06849113,106160.0,106150.0,0.18841262]
[1762805442955,0.06849113,106160.0,106150.0,0.5087295]
[1762805444822,0.02803113,106160.0,106150.0,0.21614262]
[1762805445069,0.06849113,106160.0,106150.0,0.5205995]
[1762805445861,0.06849113,106160.0,106150.0,0.20028262]
[1762805446066,0.06849113,106160.0,106150.0,0.5205995]
[1762805446601,0.04352113,106160.0,106150.0,0.5442495]
[1762805446807,0.02803113,106160.0,106150.0,0.5601095]
[1762805447217,0.02803113,106160.0,106150.0,0.5364595]
[1762805447602,0.02803113,106160.0,106150.0,0.21614262]
[1762805447794,0.06849113,106160.0,106150.0,0.5205995]
[1762805448812,0.04352113,106160.0,106150.0,0.5205995]
[1762805449035,0.02803113,106160.0,106150.0,0.5601095]
[1762805449234,0.02803113,106160.0,106150.0,0.23979262]
[1762805449566,0.01768113,106160.0,106150.0,0.5701095]
[1762805453383,0.06884113,106160.0,106150.0,0.5187295]
[1762805456123,0.06884113,106160.0,106150.0,0.19841262]
[1762805456500,0.31597155,106160.0,106150.0,0.19841262]
[1762805456674,0.12757668,106160.0,106150.0,0.19841262]
[1762805457306,0.31597155,106160.0,106150.0,0.19841262]
[1762805457508,0.64513179,106160.0,106150.0,0.19841262]
[1762805457709,0.32481491,106160.0,106150.0,0.19841262]
[1762805458036,0.64513179,106160.0,106150.0,0.19841262]
[1762805458289,0.64513179,106160.0,106150.0,0.01]
[1762805458697,0.67737358,106160.0,106150.0,0.01]
[1762805459049,0.3570567,106160.0,106150.0,0.01]
[1762805459244,0.26607936,106160.0,106150.0,0.01]
[1762805459678,0.26607936,106160.0,106150.0,0.19841262]
[1762805459829,0.26607936,106160.0,106150.0,0.01]
[1762805462426,0.58639624,106160.0,106150.0,0.01]
[1762805462865,1.57875124,106160.0,106150.0,0.01]
[1762805463062,1.67685297,106160.0,106150.0,0.01]
[1762805464314,1.70909476,106160.0,106150.0,0.01]
[1762805465112,0.18843037,106140.0,106130.0,0.18844812]
[1762805465368,0.21433037,106140.0,106130.0,0.18844812]
[1762805465560,0.23778037,106140.0,106130.0,0.508765]
[1762805465994,0.01062,106150.0,106140.0,0.18843037]
[1762805466195,0.05146295,106160.0,106150.0,0.18841262]
[1762805466368,0.26396703,106160.0,106150.0,0.5087295]
[1762805466589,0.07557216,106160.0,106150.0,0.5087295]
[1762805466820,0.06674144,106160.0,106150.0,0.5087295]
[1762805467050,0.04908,106160.0,106150.0,0.5087295]
[1762805467612,0.22164901,106170.0,106160.0,0.18839487]
[1762805467794,0.2481394,106170.0,106160.0,0.50871175]
[1762805468021,0.07504039,106170.0,106160.0,0.50871175]
[1762805468206,0.07504039,106170.0,106160.0,0.18839487]
[1762805468406,0.07504039,106170.0,106160.0,0.50871175]
[1762805469027,0.09225675,106170.0,106160.0,0.50871175]
[1762805469624,0.28263388,106170.0,106160.0,0.50871175]
[1762805469985,0.28263388,106170.0,106150.0,0.21058262]
[1762805470186,0.25651308,106160.0,106150.0,0.01]
[1762805470401,0.35404632,106160.0,106150.0,0.01]
[1762805470612,0.35404632,106160.0,106150.0,0.19841262]
[1762805470810,0.15682077,106160.0,106150.0,0.5187295]
[1762805471149,0.06674023,106160.0,106150.0,0.5187295]
[1762805471659,0.04908,106160.0,106150.0,0.5187295]
[1762805473106,0.21641349,106170.0,106160.0,0.18839487]
[1762805473107,0.01082,106170.0,106160.0,0.18839487]
[1762805473315,0.04209995,106170.0,106160.0,0.82902863]
[1762805473519,0.07503986,106170.0,106160.0,0.50871175]
[1762805473735,0.07503986,106170.0,106160.0,0.18839487]
[1762805473941,0.07503986,106170.0,106160.0,0.82902863]
[1762805474343,0.07603986,106170.0,106160.0,0.82902863]
[1762805474553,0.10450711,106170.0,106160.0,0.82902863]
[1762805474758,0.29388424,106170.0,106160.0,0.50871175]
[1762805475115,0.10550711,106170.0,106160.0,0.50871175]
[1762805476429,0.10550711,106170.0,106160.0,0.82902863]
[1762805476828,0.10550711,106170.0,106160.0,0.50871175]
[1762805477025,0.10550711,106170.0,106160.0,0.82902863]
[1762805477603,0.07703986,106170.0,106160.0,0.82902863]
[1762805478938,0.26541699,106170.0,106160.0,0.50871175]
[1762805479347,0.06820991,106170.0,106160.0,0.50871175]
[1762805479797,0.25658704,106170.0,106160.0,0.50871175]
[1762805480468,0.25658704,106170.0,106160.0,0.53702508]
[1762805480880,0.30458652,106170.0,106160.0,0.53702508]
[1762805482772,0.30458652,106170.0,106160.0,0.34863021]
[1762805483011,0.30458652,106170.0,106160.0,0.02831333]
[1762805483205,0.18839487,106160.0,106150.0,0.5187295]
[1762805483430,0.23788487,106160.0,106150.0,0.54704497]
[1762805483636,0.31852471,106160.0,106150.0,0.54704497]
[1762805483837,0.31852471,106160.0,106150.0,0.03831547]
[1762805484098,0.33618147,106160.0,106150.0,0.01]
[1762805485355,0.33718147,106160.0,106150.0,0.01]
[1762805486145,0.33618147,106160.0,106150.0,0.01]
[1762805486539,0.33718147,106160.0,106150.0,0.01]
[1762805486968,0.33818147,106160.0,106150.0,0.01]
[1762805487769,1.96375668,106160.0,106150.0,0.01]
[1762805487946,1.99620334,106160.0,106150.0,0.01]
[1762805488688,1.91331534,106160.0,106150.0,0.01]
[1762805490292,1.21478946,106160.0,106150.0,0.01]
[1762805490690,1.21478946,106160.0,106130.0,0.48698755]
[1762805490691,0.18841262,106150.0,106130.0,0.48698755]
[1762805490871,0.02612,106140.0,106130.0,0.16667067]
[1762805491071,0.01062,106140.0,106130.0,0.52192755]
[1762805491333,0.01062,106140.0,106130.0,0.49923755]
[1762805491506,0.04976,106140.0,106130.0,0.49923755]
[1762805492098,0.04976,106140.0,106130.0,0.50865995]
[1762805492297,0.04976,106140.0,106130.0,0.52473001]
[1762805492503,0.23819037,106140.0,106130.0,0.20441313]
[1762805492745,0.23819037,106140.0,106130.0,0.52473001]
[1762805492948,0.04976,106140.0,106130.0,0.52573001]
[1762805493217,0.23819037,106140.0,106130.0,0.52573001]
[1762805493855,0.04976,106140.0,106130.0,0.52573001]
[1762805494055,0.23819037,106140.0,106130.0,0.52573001]
[1762805494501,0.04976,106140.0,106130.0,0.52573001]
[1762805498433,0.01109825,106150.0,106140.0,0.18843037]
[1762805498655,0.03566825,106150.0,106140.0,0.50874725]
[1762805498816,0.05193825,106150.0,106140.0,0.50874725]
[1762805499014,0.05193825,106150.0,106140.0,0.50877622]
[1762805500305,0.05293825,106150.0,106140.0,0.50877622]
[1762805500485,0.02836825,106150.0,106140.0,0.50877622]
[1762805500979,0.02836825,106150.0,106140.0,0.52034622]
[1762805502055,0.01209825,106150.0,106140.0,0.55942622]
[1762805502257,0.00147825,106150.0,106140.0,1.20277207]
[1762805502460,0.00147825,106150.0,106140.0,1.23108641]
[1762805503674,0.00147825,106150.0,106140.0,1.23208641]
[1762805503902,0.00047825,106150.0,106140.0,1.23208641]
[1762805510850,0.00047825,106150.0,106140.0,1.26826869]
[1762805511050,0.00047825,106150.0,106140.0,1.33537902]
[1762805512101,0.00047825,106150.0,106140.0,0.76681557]
[1762805512306,0.00047825,106150.0,106140.0,1.40750727]
[1762805514878,0.00047825,106150.0,106140.0,1.41750727]
[1762805522172,0.00047825,106150.0,106140.0,1.43462358]
[1762805522890,1e-08,106150.0,106140.0,1.75496943]
[1762805523463,0.00023351,106180.0,106170.0,1.15206883]
[1762805523695,0.00036865,106180.0,106170.0,1.17537883]
[1762805523882,0.00036865,106180.0,106170.0,1.19995883]
[1762805524076,0.00036865,106180.0,106170.0,1.22826559]
[1762805524700,0.00136865,106180.0,106170.0,1.22826559]
[1762805525103,0.00036865,106180.0,106170.0,1.22826559]
[1762805525322,0.00136865,106180.0,106170.0,1.22826559]
[1762805525620,0.00236865,106180.0,106170.0,1.22826559]
[1762805526098,0.00136865,106180.0,106170.0,1.22826559]
[1762805526428,0.00236865,106180.0,106170.0,1.22826559]
[1762805527376,0.00236865,106180.0,106170.0,1.29939158]
[1762805528203,0.00236865,106180.0,106170.0,1.33557386]
[1762805528443,0.00236865,106180.0,106170.0,1.40277966]
[1762805528864,0.00236865,106180.0,106170.0,1.4024532]
[1762805529217,0.00036865,106180.0,106170.0,1.4024532]
[1762805529414,0.00036865,106180.0,106170.0,1.4034532]
[1762805532593,0.00036865,106180.0,106170.0,1.4134532]
[1762805535035,0.0002,106190.0,106170.0,1.4134532]
[1762805535036,0.0002,106190.0,106180.0,0.54754166]
[1762805535271,0.00029,106190.0,106180.0,1.32134495]
[1762805535684,0.00029,106190.0,106180.0,1.32789494]
[1762805536186,1e-08,106190.0,106180.0,1.32789494]
[1762805536353,0.05372,106250.0,106230.0,0.21673073]
[1762805536557,0.05381006,106250.0,106240.0,0.18825301]
[1762805536702,0.26683535,106250.0,106240.0,0.32034585]
[1762805537079,0.05381006,106250.0,106240.0,0.56534859]
[1762805537202,0.06899006,106250.0,106240.0,0.21654274]
[1762805537405,0.09536175,106250.0,106240.0,0.54884859]
[1762805537760,0.30838704,106250.0,106240.0,0.02828973]
[1762805537992,0.12015175,106250.0,106240.0,0.34863558]
[1762805538195,0.30838704,106250.0,106240.0,0.34863558]
[1762805538627,0.30938704,106250.0,106240.0,0.34863558]
[1762805538779,0.30938704,106250.0,106240.0,0.02828973]
[1762805538989,0.30938704,106250.0,106240.0,0.34863558]
[1762805539191,0.30938704,106250.0,106240.0,0.53688859]
[1762805539799,0.30938704,106250.0,106240.0,0.34863558]
[1762805539976,0.30938704,106250.0,106240.0,0.35863558]
[1762805540390,0.30938704,106250.0,106240.0,0.33034585]
[1762805541199,0.30938704,106250.0,106240.0,0.01]
[1762805541621,0.31102042,106250.0,106240.0,0.33034585]
[1762805543032,0.31102042,106250.0,106240.0,0.34034585]
[1762805543236,0.31102042,106250.0,106240.0,0.52859886]
[1762805543796,0.31102042,106250.0,106240.0,0.34034585]
[1762805545024,0.12278513,106250.0,106240.0,0.52859886]
[1762805546697,0.12278513,106250.0,106240.0,0.55688979]
[1762805547129,0.12278513,106250.0,106240.0,0.04829093]
[1762805547130,0.33005863,106250.0,106240.0,0.04829093]
[1762805547328,0.33005863,106250.0,106240.0,0.20825301]
[1762805547329,0.38393011,106250.0,106240.0,0.20825301]
[1762805547530,0.31102042,106250.0,106240.0,0.20825301]
[1762805547643,0.12278513,106250.0,106240.0,0.52859886]
[1762805547850,0.31102042,106250.0,106240.0,0.20825301]
[1762805548089,0.12278513,106250.0,106240.0,0.20825301]
[1762805548465,0.31102042,106250.0,106240.0,0.20825301]
[1762805548667,0.12278513,106250.0,106240.0,0.20825301]
[1762805549925,0.31102042,106250.0,106240.0,0.20825301]
[1762805551347,0.12278513,106250.0,106240.0,0.20825301]
[1762805551743,0.12278513,106250.0,106240.0,0.52859886]
[1762805552186,0.12278513,106250.0,106240.0,0.55689019]
[1762805553288,0.09799513,106250.0,106240.0,0.55689019]
[1762805553600,0.09799513,106250.0,106240.0,0.56861019]
[1762805554008,0.09797775,106250.0,106240.0,0.56861019]
[1762805554243,0.07297775,106250.0,106240.0,0.60795019]
[1762805555434,0.07297775,106250.0,106240.0,0.93095019]
[1762805555991,0.07197775,106250.0,106240.0,0.93095019]
[1762805556393,0.07297775,106250.0,106240.0,0.93095019]
[1762805558946,0.07297775,106250.0,106240.0,1.24983288]
[1762805559439,0.08896775,106250.0,106240.0,1.21049288]
[1762805559694,0.11159775,106250.0,106240.0,0.55954434]
[1762805559889,0.09402821,106250.0,106240.0,0.55615861]
[1762805560227,0.11161063,106250.0,106240.0,0.55615861]
[1762805560821,0.08898063,106250.0,106240.0,0.55615861]
[1762805561146,0.08898063,106250.0,106240.0,0.23654434]
[1762805561348,0.29984592,106250.0,106240.0,0.23654434]
[1762805561766,0.70123029,106250.0,106240.0,0.04829133]
[1762805561966,0.70123029,106250.0,106240.0,0.02]
[1762805562628,0.61946019,106250.0,106240.0,0.02]
[1762805562956,0.29984592,106250.0,106240.0,0.02]
[1762805563122,0.61946019,106250.0,106240.0,0.02]
[1762805564816,0.61949996,106250.0,106240.0,0.02]
[1762805566987,0.61949996,106250.0,106240.0,0.20825301]
[1762805567271,0.61949996,106250.0,106240.0,0.02]
[1762805568119,0.93911423,106250.0,106240.0,0.02]
[1762805568332,0.65194662,106250.0,106240.0,0.02]
[1762805568744,0.85194662,106250.0,106240.0,0.02]
[1762805568945,0.93201821,106250.0,106240.0,0.02]
[1762805569152,0.93101821,106250.0,106240.0,0.02]
[1762805569526,1.03011994,106250.0,106240.0,0.02]
[1762805570612,1.34973421,106250.0,106240.0,0.02]
[1762805571006,1.03011994,106250.0,106240.0,0.02]
[1762805571411,1.34973421,106250.0,106240.0,0.02]
[1762805571732,0.18830618,106210.0,106200.0,0.18832305]
[1762805571944,0.24110432,106210.0,106200.0,0.02830187]
[1762805572143,0.2655746,106210.0,106200.0,0.02830187]
[1762805572364,0.2655746,106210.0,106190.0,0.20941267]
[1762805572578,0.2655746,106210.0,106190.0,0.55732881]
[1762805572579,0.02655,106200.0,106190.0,0.55732881]
[1762805572760,0.23251267,106200.0,106190.0,0.55732881]
[1762805572955,0.04418876,106200.0,106190.0,0.55732881]
[1762805573730,0.01763876,106200.0,106190.0,0.59698881]
[1762805574691,0.01763876,106200.0,106190.0,0.59898881]
[1762805575309,0.01763876,106200.0,106190.0,0.59998881]
[1762805575635,0.01763876,106200.0,106190.0,0.60998881]
[1762805575845,0.01763876,106200.0,106190.0,0.60898881]
[1762805576263,0.01763876,106200.0,106190.0,0.61098881]
[1762805577027,0.04387876,106200.0,106190.0,0.57132881]
[1762805577248,0.02624,106200.0,106190.0,0.57132881]
[1762805577429,0.01035,106200.0,106190.0,0.57132881]
[1762805577832,0.0108169,106200.0,106190.0,0.58132881]
[1762805578035,0.0108169,106200.0,106190.0,0.59726881]
[1762805578415,0.0004669,106200.0,106190.0,0.62150881]
[1762805578655,0.0004669,106200.0,106190.0,1.30030536]
[1762805588279,0.0004669,106200.0,106190.0,1.36751116]
[1762805588681,0.0108169,106200.0,106190.0,0.92026881]
[1762805588905,0.0004669,106200.0,106190.0,1.26412308]
[1762805589318,0.0004669,106200.0,106190.0,1.36751116]
[1762805591506,0.0004669,106200.0,106190.0,0.72828262]
[1762805591707,0.0004669,106200.0,106190.0,1.36751116]
[1762805592119,0.0004669,106200.0,106190.0,0.72828262]
[1762805592314,0.0004669,106200.0,106190.0,0.66107682]
[1762805592516,0.0004669,106200.0,106190.0,1.38431261]
[1762805592714,0.0004669,106200.0,106190.0,1.30030536]
[1762805592956,0.0004669,106200.0,106190.0,1.38431261]
[1762805593695,0.0004669,106200.0,106190.0,1.4643842]
[1762805594537,0.03381,106240.0,106230.0,0.18827073]
[1762805594740,0.01044006,106240.0,106230.0,0.507885]
[1762805595190,0.02726342,106240.0,106230.0,0.507885]
[1762805595767,0.01137342,106240.0,106230.0,0.560435]
[1762805596401,0.00102342,106240.0,106230.0,0.560435]
[1762805596605,0.00602342,106240.0,106230.0,0.560435]
[1762805597166,0.00575056,106240.0,106230.0,0.560435]
[1762805597371,0.00075056,106240.0,106230.0,0.560435]
[1762805597569,0.00075056,106240.0,106230.0,0.883435]
[1762805597795,0.00075056,106240.0,106230.0,0.95062603]
[1762805598539,0.00075056,106240.0,106230.0,1.0206317]
[1762805599521,0.00075056,106240.0,106230.0,0.95062603]
[1762805599974,0.00075056,106240.0,106230.0,0.883435]
[1762805601451,0.00075056,106240.0,106230.0,0.859195]
[1762805601858,0.00075056,106240.0,106230.0,0.883435]
[1762805602652,0.00075056,106240.0,106230.0,1.20304927]
[1762805603079,0.00075056,106240.0,106230.0,0.883435]
[1762805603616,0.00075056,106240.0,106230.0,0.91172481]
[1762805605106,0.00075056,106240.0,106230.0,1.23133908]
[1762805605284,0.00075056,106240.0,106230.0,0.91172481]
[1762805605489,0.00075056,106240.0,106230.0,0.59211054]
[1762805605690,0.00075056,106240.0,106230.0,0.91172481]
[1762805608207,0.00075056,106240.0,106230.0,0.92172481]
[1762805610235,0.00075056,106240.0,106230.0,0.93172481]
[1762805611759,0.00075056,106240.0,106230.0,1.36759295]
[1762805611967,0.00075056,106240.0,106230.0,1.43478398]
[1762805612185,0.0439,106250.0,106240.0,0.22443529]
[1762805612413,0.0439,106250.0,106240.0,0.91663383]
[1762805613085,1e-08,106250.0,106240.0,1.33172437]
[1762805613531,0.00300001,106250.0,106240.0,1.33172437]
[1762805613769,0.00200001,106250.0,106240.0,1.33172437]
[1762805614280,1e-08,106250.0,106240.0,1.65572437]
[1762805615175,1e-08,106250.0,106240.0,1.80122437]
[1762805615404,0.0002,106260.0,106250.0,0.22441757]
[1762805615621,0.0002,106260.0,106250.0,0.9966877]
[1762805615826,0.0002,106260.0,106250.0,1.06744251]
[1762805616312,0.0002,106260.0,106250.0,0.43198467]
[1762805616549,0.0002,106260.0,106250.0,1.07121321]
[1762805616784,0.0012,106260.0,106250.0,1.07121321]
[1762805618665,0.0012,106260.0,106250.0,1.08121321]
[1762805619430,0.0016665,106260.0,106250.0,1.08121321]
[1762805620511,0.0016665,106260.0,106250.0,1.09121321]